[Event "Live Chess"]
[Site "Chess.com"]
[Date "2024.06.02"]
[Round "-"]
[White "TJ-W"]
[Black "ggosyaa"]
[Result "1-0"]
[WhiteElo "1574"]
[BlackElo "575"]
[TimeControl "300"]
[EndTime "2:13:45 PDT"]
[Termination "TJ-W won by checkmate"]

1. e4 {[%clk 0:04:57.8]} 1... e5 {[%clk 0:04:59.2]} 2. Nf3 {[%clk 0:04:56.5]}
2... Nf6 {[%clk 0:04:57.4]} 3. Nxe5 {[%clk 0:04:54.3]} 3... Nc6 {[%clk
0:04:56.5]} 4. Nxc6 {[%clk 0:04:50.9]} 4... dxc6 {[%clk 0:04:55.8]} 5. Nc3
{[%clk 0:04:48]} 5... Bc5 {[%clk 0:04:54.3]} 6. Bc4 {[%clk 0:04:40.4]} 6... O-O
{[%clk 0:04:46.5]} 7. O-O {[%clk 0:04:37.2]} 7... Ng4 {[%clk 0:04:35.8]} 8. h3
{[%clk 0:04:28.2]} 8... Qh4 {[%clk 0:04:26.1]} 9. d4 {[%clk 0:04:12.6]} 9... Bd6
{[%clk 0:04:17.6]} 10. e5 {[%clk 0:04:04]} 10... Bb4 {[%clk 0:04:15.2]} 11. hxg4
{[%clk 0:03:54.5]} 11... Bxg4 {[%clk 0:04:12]} 12. g3 {[%clk 0:03:44]} 12... Qh5
{[%clk 0:04:01.1]} 13. f3 {[%clk 0:03:40]} 13... Bf5 {[%clk 0:03:52.9]} 14. g4
{[%clk 0:03:36.4]} 14... Bxc2 {[%clk 0:03:41.6]} 15. gxh5 {[%clk 0:03:30.9]}
15... Bxd1 {[%clk 0:03:40.7]} 16. Rxd1 {[%clk 0:03:30.2]} 16... Be7 {[%clk
0:03:36]} 17. h6 {[%clk 0:03:25.4]} 17... g6 {[%clk 0:03:32.5]} 18. f4 {[%clk
0:03:18.4]} 18... Rad8 {[%clk 0:03:29.4]} 19. f5 {[%clk 0:03:11.9]} 19... gxf5
{[%clk 0:03:27.6]} 20. Kf2 {[%clk 0:03:09.4]} 20... c5 {[%clk 0:03:26.1]} 21.
Rg1+ {[%clk 0:03:02.5]} 21... Kh8 {[%clk 0:03:24]} 22. dxc5 {[%clk 0:03:01.8]}
22... Rd4 {[%clk 0:03:18.4]} 23. Bb3 {[%clk 0:02:50.9]} 23... Bxc5 {[%clk
0:03:08.1]} 24. Be3 {[%clk 0:02:43.4]} 24... Rd2+ {[%clk 0:03:00.6]} 25. Kf3
{[%clk 0:02:36.5]} 25... Bxe3 {[%clk 0:02:48.5]} 26. Kxe3 {[%clk 0:02:34.6]}
26... Rxb2 {[%clk 0:02:47.3]} 27. Nd5 {[%clk 0:02:32.3]} 27... Re8 {[%clk
0:02:41.1]} 28. Nf6 {[%clk 0:02:25.8]} 28... f4+ {[%clk 0:02:25.9]} 29. Kxf4
{[%clk 0:02:17.6]} 29... Rf2+ {[%clk 0:02:23.8]} 30. Ke3 {[%clk 0:02:12.3]}
30... Rf5 {[%clk 0:02:17.4]} 31. Nxe8 {[%clk 0:02:07.4]} 31... Rxe5+ {[%clk
0:02:14.4]} 32. Kf4 {[%clk 0:02:05.5]} 32... Rxe8 {[%clk 0:02:13.4]} 33. Bxf7
{[%clk 0:02:02.3]} 33... Rf8 {[%clk 0:02:12]} 34. Rg8+ {[%clk 0:01:51]} 34...
Rxg8 {[%clk 0:02:10]} 35. Bxg8 {[%clk 0:01:50.9]} 35... Kxg8 {[%clk 0:02:09.7]}
36. Ke5 {[%clk 0:01:48.1]} 36... Kf7 {[%clk 0:02:09.2]} 37. Rg1 {[%clk
0:01:44.6]} 37... b5 {[%clk 0:02:05.6]} 38. Rg7+ {[%clk 0:01:42.1]} 38... Ke8
{[%clk 0:02:03.6]} 39. Rxc7 {[%clk 0:01:39.9]} 39... a5 {[%clk 0:01:58.8]} 40.
Ke6 {[%clk 0:01:36.7]} 40... Kd8 {[%clk 0:01:57.6]} 41. Rxh7 {[%clk 0:01:32.1]}
41... b4 {[%clk 0:01:55.8]} 42. Rd7+ {[%clk 0:01:28.2]} 42... Kc8 {[%clk
0:01:54.4]} 43. h7 {[%clk 0:01:27.7]} 43... Kb8 {[%clk 0:01:52.2]} 44. h8=R#
{[%clk 0:01:27.6]} 1-0

[Event "Live Chess"]
[Site "Chess.com"]
[Date "2024.06.02"]
[Round "-"]
[White "Crowded_House"]
[Black "juniortay"]
[Result "1-0"]
[WhiteElo "1691"]
[BlackElo "2371"]
[TimeControl "300"]
[EndTime "2:13:57 PDT"]
[Termination "Crowded_House won by resignation"]

1. d4 {[%clk 0:04:57.5]} 1... d5 {[%clk 0:04:58.7]} 2. Bg5 {[%clk 0:04:56.2]}
2... f6 {[%clk 0:04:57.5]} 3. Bh4 {[%clk 0:04:54.5]} 3... Nh6 {[%clk 0:04:57.2]}
4. e3 {[%clk 0:04:51.6]} 4... Nf5 {[%clk 0:04:56.2]} 5. Bg3 {[%clk 0:04:49.9]}
5... h5 {[%clk 0:04:54.8]} 6. Nf3 {[%clk 0:04:44.5]} 6... h4 {[%clk 0:04:51.1]}
7. Bf4 {[%clk 0:04:35.9]} 7... g5 {[%clk 0:04:49.8]} 8. Nxg5 {[%clk 0:04:34.4]}
8... fxg5 {[%clk 0:04:48.5]} 9. Bxg5 {[%clk 0:04:34]} 9... Nc6 {[%clk
0:04:45.6]} 10. c3 {[%clk 0:04:28.3]} 10... Qd6 {[%clk 0:04:43.9]} 11. Bf4
{[%clk 0:04:25.7]} 11... Qg6 {[%clk 0:04:42.7]} 12. Bxc7 {[%clk 0:04:19.5]}
12... Be6 {[%clk 0:04:40.7]} 13. Be5 {[%clk 0:04:15.5]} 13... Bg7 {[%clk
0:04:39.1]} 14. Bxg7 {[%clk 0:04:13.5]} 14... Qxg7 {[%clk 0:04:37.8]} 15. Qb3
{[%clk 0:04:06.2]} 15... O-O-O {[%clk 0:04:35.7]} 16. Nd2 {[%clk 0:03:58.1]}
16... Qg4 {[%clk 0:04:32.8]} 17. Rg1 {[%clk 0:03:48.9]} 17... Rhg8 {[%clk
0:04:23.1]} 18. Be2 {[%clk 0:03:46.4]} 18... Qg5 {[%clk 0:04:18.9]} 19. O-O-O
{[%clk 0:03:38.3]} 19... Kb8 {[%clk 0:04:17.7]} 20. Bb5 {[%clk 0:03:31.3]} 20...
Rc8 {[%clk 0:04:15.2]} 21. Nf3 {[%clk 0:03:23.1]} 21... Qf6 {[%clk 0:04:11.6]}
22. Bxc6 {[%clk 0:03:20]} 22... Rxc6 {[%clk 0:04:10.2]} 23. Ne5 {[%clk
0:03:17.9]} 23... Rb6 {[%clk 0:04:09.6]} 24. Qa4 {[%clk 0:03:03.5]} 24... Rc8
{[%clk 0:04:08.3]} 25. Nd7+ {[%clk 0:02:54.8]} 25... Bxd7 {[%clk 0:04:06.4]} 26.
Qxd7 {[%clk 0:02:54.4]} 26... Nd6 {[%clk 0:04:03.6]} 27. Qg4 {[%clk 0:02:43]}
27... Qh6 {[%clk 0:03:45]} 28. Qf4 {[%clk 0:02:38.7]} 28... Qh7 {[%clk
0:03:42.4]} 29. g3 {[%clk 0:02:22.6]} 29... hxg3 {[%clk 0:03:38.7]} 30. hxg3
{[%clk 0:02:19.9]} 30... Ka8 {[%clk 0:03:27]} 31. Rh1 {[%clk 0:02:18.5]} 31...
Rxc3+ {[%clk 0:02:50.7]} 32. bxc3 {[%clk 0:02:06.5]} 32... Rb1+ {[%clk
0:02:48.4]} 33. Kd2 {[%clk 0:02:05.1]} 33... Nc4+ {[%clk 0:02:36]} 34. Ke2
{[%clk 0:01:48.6]} 34... Qc2+ {[%clk 0:02:30.1]} 35. Kf3 {[%clk 0:01:37.8]}
35... a5 {[%clk 0:02:25.3]} 36. Rxb1 {[%clk 0:01:33.8]} 36... Nd2+ {[%clk
0:02:20]} 37. Kg4 {[%clk 0:01:25.3]} 37... Nxb1 {[%clk 0:02:12.7]} 38. Rh8+
{[%clk 0:01:15.2]} 38... Ka7 {[%clk 0:02:11.8]} 39. Qb8+ {[%clk 0:01:12.2]}
39... Kb6 {[%clk 0:02:11]} 40. Rh6+ {[%clk 0:01:08.6]} 40... Kb5 {[%clk
0:02:02.9]} 41. Qxb7+ {[%clk 0:01:07.2]} 41... Ka4 {[%clk 0:02:02.4]} 42. Qc6+
{[%clk 0:01:01.8]} 42... Ka3 {[%clk 0:01:58.5]} 43. Qc5+ {[%clk 0:00:58.9]}
43... Kb2 {[%clk 0:01:55.3]} 44. Qb5+ {[%clk 0:00:50.1]} 44... Kc1 {[%clk
0:01:54.3]} 45. Rh1+ {[%clk 0:00:48.2]} 45... Kd2 {[%clk 0:01:49.4]} 46. Qxb1
{[%clk 0:00:43.4]} 1-0

[Event "Live Chess"]
[Site "Chess.com"]
[Date "2024.06.02"]
[Round "-"]
[White "lateforthesky"]
[Black "bill77678"]
[Result "1-0"]
[WhiteElo "2075"]
[BlackElo "1837"]
[TimeControl "300"]
[EndTime "2:13:59 PDT"]
[Termination "lateforthesky won by resignation"]

1. e4 {[%clk 0:04:56.7]} 1... c6 {[%clk 0:04:58.5]} 2. Nf3 {[%clk 0:04:55.1]}
2... d5 {[%clk 0:04:57.7]} 3. exd5 {[%clk 0:04:53.8]} 3... cxd5 {[%clk
0:04:57.1]} 4. Ne5 {[%clk 0:04:53.3]} 4... Bf5 {[%clk 0:04:51.8]} 5. d4 {[%clk
0:04:43.3]} 5... Nd7 {[%clk 0:04:48.1]} 6. Nxf7 {[%clk 0:03:59.4]} 6... Kxf7
{[%clk 0:04:34.1]} 7. Qf3 {[%clk 0:03:58.2]} 7... Ngf6 {[%clk 0:03:54.8]} 8.
Qxf5 {[%clk 0:03:54.8]} 8... e6 {[%clk 0:03:51.9]} 9. Qf3 {[%clk 0:03:52.5]}
9... Bd6 {[%clk 0:03:45.3]} 10. Bd3 {[%clk 0:03:50]} 10... Rf8 {[%clk
0:03:43.4]} 11. O-O {[%clk 0:03:43]} 11... Qb6 {[%clk 0:03:34.2]} 12. c3 {[%clk
0:03:38.5]} 12... Rae8 {[%clk 0:03:31.6]} 13. Qh3 {[%clk 0:03:34.2]} 13... Kg8
{[%clk 0:03:24.3]} 14. Nd2 {[%clk 0:03:31.9]} 14... a6 {[%clk 0:03:20.2]} 15.
Nf3 {[%clk 0:03:27.3]} 15... Qc7 {[%clk 0:03:12.4]} 16. Ng5 {[%clk 0:03:23.8]}
1-0

[Event "Live Chess"]
[Site "Chess.com"]
[Date "2024.06.02"]
[Round "-"]
[White "LL220284LL"]
[Black "TheSmoulderingMaster"]
[Result "1-0"]
[WhiteElo "2506"]
[BlackElo "1789"]
[TimeControl "300"]
[EndTime "2:14:15 PDT"]
[Termination "LL220284LL won by resignation"]

1. g3 {[%clk 0:04:58.9]} 1... d5 {[%clk 0:04:58]} 2. Bg2 {[%clk 0:04:57.7]} 2...
e5 {[%clk 0:04:56.7]} 3. d3 {[%clk 0:04:56]} 3... Nc6 {[%clk 0:04:55.7]} 4. Nf3
{[%clk 0:04:54.2]} 4... Nf6 {[%clk 0:04:54.4]} 5. O-O {[%clk 0:04:52.8]} 5...
Bc5 {[%clk 0:04:52]} 6. b3 {[%clk 0:04:51.4]} 6... O-O {[%clk 0:04:49]} 7. Bb2
{[%clk 0:04:50.7]} 7... Qe7 {[%clk 0:04:46.6]} 8. Re1 {[%clk 0:04:42]} 8... Bg4
{[%clk 0:04:36.5]} 9. Nbd2 {[%clk 0:04:38.9]} 9... Rad8 {[%clk 0:04:34.5]} 10.
a3 {[%clk 0:04:31.9]} 10... e4 {[%clk 0:04:30.7]} 11. Ng5 {[%clk 0:04:25.2]}
11... e3 {[%clk 0:04:27.1]} 12. fxe3 {[%clk 0:04:10.2]} 12... Bxe3+ {[%clk
0:04:24.7]} 13. Kh1 {[%clk 0:04:08.6]} 13... Bxg5 {[%clk 0:04:23.9]} 14. e4
{[%clk 0:04:05.4]} 14... Bxd2 {[%clk 0:04:21.9]} 15. Qxd2 {[%clk 0:04:03.5]}
15... dxe4 {[%clk 0:04:20.6]} 16. Qg5 {[%clk 0:04:00.7]} 16... Rd6 {[%clk
0:03:53.3]} 17. Bxf6 {[%clk 0:03:57.5]} 17... Qxf6 {[%clk 0:03:43.5]} 18. Qxg4
{[%clk 0:03:56.1]} 18... exd3 {[%clk 0:03:41.6]} 19. cxd3 {[%clk 0:03:53.5]}
19... Rxd3 {[%clk 0:03:40.5]} 20. b4 {[%clk 0:03:48.8]} 20... h6 {[%clk
0:03:38.5]} 21. Rf1 {[%clk 0:03:45.7]} 21... Qd4 {[%clk 0:03:34.9]} 22. Qf5
{[%clk 0:03:37.6]} 22... Ne5 {[%clk 0:03:27.4]} 23. Rae1 {[%clk 0:03:32.5]}
23... Ng4 {[%clk 0:03:23]} 24. Be4 {[%clk 0:03:19.8]} 24... g6 {[%clk
0:02:29.2]} 25. Qxg4 {[%clk 0:03:14.2]} 25... Rd2 {[%clk 0:02:24]} 26. Qf4
{[%clk 0:03:09.4]} 26... Kg7 {[%clk 0:02:15.5]} 27. Bxb7 {[%clk 0:03:05.7]}
27... Qb6 {[%clk 0:02:08.8]} 28. Qxd2 {[%clk 0:03:01.8]} 28... Qxb7+ {[%clk
0:02:05.1]} 29. Qg2 {[%clk 0:03:00.6]} 1-0

[Event "Live Chess"]
[Site "Chess.com"]
[Date "2024.06.02"]
[Round "-"]
[White "friarnator"]
[Black "Greenbecker"]
[Result "1-0"]
[WhiteElo "2186"]
[BlackElo "1741"]
[TimeControl "300"]
[EndTime "2:14:31 PDT"]
[Termination "friarnator won by resignation"]

1. d4 {[%clk 0:04:57.5]} 1... d5 {[%clk 0:04:58.2]} 2. Nc3 {[%clk 0:04:54.8]}
2... e6 {[%clk 0:04:56.3]} 3. e4 {[%clk 0:04:50.2]} 3... c5 {[%clk 0:04:54.5]}
4. exd5 {[%clk 0:04:48.6]} 4... exd5 {[%clk 0:04:51.6]} 5. dxc5 {[%clk
0:04:47.9]} 5... Bxc5 {[%clk 0:04:49.7]} 6. Qxd5 {[%clk 0:04:46.3]} 6... Qe7+
{[%clk 0:04:40.4]} 7. Qe4 {[%clk 0:04:40.1]} 7... Nc6 {[%clk 0:04:32.8]} 8. Bb5
{[%clk 0:04:36.3]} 8... Bd7 {[%clk 0:04:30.6]} 9. Nf3 {[%clk 0:04:28.8]} 9...
O-O-O {[%clk 0:04:25.8]} 10. Qxe7 {[%clk 0:04:24.6]} 10... Ncxe7 {[%clk
0:04:19.4]} 11. Bxd7+ {[%clk 0:04:21.6]} 11... Rxd7 {[%clk 0:04:18.4]} 12. O-O
{[%clk 0:04:19.9]} 12... Ng6 {[%clk 0:04:11.7]} 13. Ne4 {[%clk 0:04:09.7]} 13...
Bb6 {[%clk 0:04:06.2]} 14. a4 {[%clk 0:04:08.1]} 14... f5 {[%clk 0:03:59.3]} 15.
Neg5 {[%clk 0:03:52.2]} 15... Nf6 {[%clk 0:03:50.2]} 16. a5 {[%clk 0:03:50.5]}
16... Bc7 {[%clk 0:03:45.7]} 17. Ne6 {[%clk 0:03:46]} 17... Re8 {[%clk
0:03:41.1]} 18. Nxc7 {[%clk 0:03:44.6]} 18... Kxc7 {[%clk 0:03:39.4]} 19. Be3
{[%clk 0:03:43.5]} 19... f4 {[%clk 0:03:26.1]} 20. Bxa7 {[%clk 0:03:37.8]} 20...
Re2 {[%clk 0:03:18.5]} 21. Bb6+ {[%clk 0:03:31.3]} 21... Kc8 {[%clk 0:03:11.7]}
22. b4 {[%clk 0:03:30.3]} 22... Rxc2 {[%clk 0:03:03.3]} 23. Rac1 {[%clk
0:03:29]} 23... Rxc1 {[%clk 0:02:56.4]} 24. Rxc1+ {[%clk 0:03:28.9]} 24... Kb8
{[%clk 0:02:55.1]} 25. b5 {[%clk 0:03:28.3]} 25... Nd5 {[%clk 0:02:44.6]} 26.
Re1 {[%clk 0:03:16]} 26... Nge7 {[%clk 0:02:19.7]} 27. Bc5 {[%clk 0:03:09.4]}
27... Kc7 {[%clk 0:01:56]} 28. Rc1 {[%clk 0:03:07.5]} 28... Nc3 {[%clk
0:01:42.6]} 29. Bxe7 {[%clk 0:02:51.5]} 29... Kb8 {[%clk 0:01:35.4]} 30. Re1
{[%clk 0:02:35.5]} 30... Nxb5 {[%clk 0:01:23.9]} 31. Bc5 {[%clk 0:02:34.5]}
31... Nc3 {[%clk 0:01:18.4]} 32. Bb6 {[%clk 0:02:32.1]} 1-0

[Event "Live Chess"]
[Site "Chess.com"]
[Date "2024.06.02"]
[Round "-"]
[White "silunn"]
[Black "road2gm5000"]
[Result "0-1"]
[WhiteElo "2133"]
[BlackElo "1107"]
[TimeControl "300"]
[EndTime "2:14:42 PDT"]
[Termination "road2gm5000 won by checkmate"]

1. e4 {[%clk 0:04:59.2]} 1... c6 {[%clk 0:04:59.2]} 2. d4 {[%clk 0:04:57.7]}
2... d5 {[%clk 0:04:58.8]} 3. exd5 {[%clk 0:04:57]} 3... cxd5 {[%clk 0:04:58.6]}
4. c4 {[%clk 0:04:56.8]} 4... Nf6 {[%clk 0:04:56.1]} 5. Nc3 {[%clk 0:04:56.5]}
5... Nc6 {[%clk 0:04:54.4]} 6. Nf3 {[%clk 0:04:56.3]} 6... g6 {[%clk 0:04:53.9]}
7. Be3 {[%clk 0:04:55.1]} 7... Bg7 {[%clk 0:04:52.7]} 8. Be2 {[%clk 0:04:54.8]}
8... Bg4 {[%clk 0:04:52]} 9. c5 {[%clk 0:04:54]} 9... e6 {[%clk 0:04:51.1]} 10.
O-O {[%clk 0:04:52.9]} 10... O-O {[%clk 0:04:50.4]} 11. a3 {[%clk 0:04:51.9]}
11... a5 {[%clk 0:04:47.5]} 12. h3 {[%clk 0:04:48.3]} 12... Bxf3 {[%clk
0:04:45.4]} 13. Bxf3 {[%clk 0:04:48.2]} 13... Qc7 {[%clk 0:04:40.2]} 14. Nb5
{[%clk 0:04:45.9]} 14... Qd7 {[%clk 0:04:33.3]} 15. Bf4 {[%clk 0:04:30.4]} 15...
Ne8 {[%clk 0:04:26.1]} 16. Qd2 {[%clk 0:04:03.1]} 16... a4 {[%clk 0:04:18]} 17.
Qb4 {[%clk 0:03:34.3]} 17... Ra5 {[%clk 0:04:04.1]} 18. Qc3 {[%clk 0:02:42.1]}
18... Rxb5 {[%clk 0:03:59.3]} 19. Be2 {[%clk 0:02:41.1]} 19... Rb3 {[%clk
0:03:56.2]} 20. Qd2 {[%clk 0:02:38.3]} 20... Nxd4 {[%clk 0:03:48.1]} 21. Bd1
{[%clk 0:02:37.3]} 21... Rb5 {[%clk 0:03:45.2]} 22. Bxa4 {[%clk 0:02:34.8]}
22... Qc6 {[%clk 0:03:35.1]} 23. Bxb5 {[%clk 0:02:30]} 23... Qxb5 {[%clk
0:03:33.9]} 24. Rab1 {[%clk 0:02:13.9]} 24... Qxc5 {[%clk 0:03:27]} 25. Be3
{[%clk 0:02:09.2]} 25... e5 {[%clk 0:03:22.9]} 26. Rfc1 {[%clk 0:02:06]} 26...
Qd6 {[%clk 0:03:19.2]} 27. Kh1 {[%clk 0:01:56.4]} 27... Nb3 {[%clk 0:03:15.2]}
28. Qc2 {[%clk 0:01:47.4]} 28... Nxc1 {[%clk 0:03:10.1]} 29. Bc5 {[%clk
0:01:45.5]} 29... Qc6 {[%clk 0:03:08.2]} 30. Rxc1 {[%clk 0:01:44.3]} 30... Nd6
{[%clk 0:03:04.9]} 31. b4 {[%clk 0:01:38.9]} 31... Rc8 {[%clk 0:03:02.7]} 32.
Qb3 {[%clk 0:01:13.7]} 32... b6 {[%clk 0:02:58.2]} 33. Be3 {[%clk 0:01:12.7]}
33... Qxc1+ {[%clk 0:02:26.5]} 34. Bxc1 {[%clk 0:01:12.6]} 34... Rxc1+ {[%clk
0:02:25.6]} 35. Kh2 {[%clk 0:01:12.2]} 35... d4 {[%clk 0:02:24]} 36. Qd5 {[%clk
0:01:09]} 36... Nc4 {[%clk 0:02:11.2]} 37. f4 {[%clk 0:01:04.4]} 37... exf4
{[%clk 0:02:06.7]} 38. Qd8+ {[%clk 0:01:03.1]} 38... Bf8 {[%clk 0:02:04.5]} 39.
Qxd4 {[%clk 0:01:03]} 39... Nxa3 {[%clk 0:02:01.8]} 40. Qxf4 {[%clk 0:01:01.3]}
40... Rc4 {[%clk 0:01:57.4]} 41. Qe3 {[%clk 0:00:58]} 41... Rxb4 {[%clk
0:01:55.5]} 42. Qxa3 {[%clk 0:00:55.7]} 42... Rd4 {[%clk 0:01:43.5]} 43. Qb2
{[%clk 0:00:51.5]} 43... Rd6 {[%clk 0:01:41.5]} 44. h4 {[%clk 0:00:49.2]} 44...
Bg7 {[%clk 0:01:40.4]} 45. Qb4 {[%clk 0:00:48.1]} 45... Bf8 {[%clk 0:01:38.5]}
46. Qc3 {[%clk 0:00:46.6]} 46... h5 {[%clk 0:01:33.6]} 47. Qc7 {[%clk
0:00:41.8]} 47... b5 {[%clk 0:01:26.1]} 48. Qb8 {[%clk 0:00:40.5]} 48... Rd5
{[%clk 0:01:23.3]} 49. g3 {[%clk 0:00:38.2]} 49... Kg7 {[%clk 0:01:21]} 50. Kg2
{[%clk 0:00:36.6]} 50... b4 {[%clk 0:01:18.1]} 51. Qb7 {[%clk 0:00:35.2]} 51...
Rd3 {[%clk 0:01:13]} 52. Qb5 {[%clk 0:00:33.1]} 52... Ra3 {[%clk 0:01:06.9]} 53.
Qe5+ {[%clk 0:00:31.5]} 53... Kg8 {[%clk 0:01:01.9]} 54. Kh3 {[%clk 0:00:30.2]}
54... b3 {[%clk 0:00:59.6]} 55. Qb2 {[%clk 0:00:29.3]} 55... Kh7 {[%clk
0:00:46]} 56. g4 {[%clk 0:00:26.1]} 56... hxg4+ {[%clk 0:00:44.6]} 57. Kxg4
{[%clk 0:00:25.3]} 57... Ra4+ {[%clk 0:00:42.9]} 58. Kg3 {[%clk 0:00:22]} 58...
Rb4 {[%clk 0:00:40.9]} 59. Kh3 {[%clk 0:00:20.3]} 59... Bc5 {[%clk 0:00:37.3]}
60. Kg3 {[%clk 0:00:18.6]} 60... Bd4 {[%clk 0:00:36.3]} 61. Qd2 {[%clk
0:00:17.6]} 61... Bc5 {[%clk 0:00:29.5]} 62. Qb2 {[%clk 0:00:16.3]} 62... Bd6+
{[%clk 0:00:26]} 63. Kh3 {[%clk 0:00:15.9]} 63... Rb5 {[%clk 0:00:22.3]} 64. Qf6
{[%clk 0:00:14.5]} 64... Kg8 {[%clk 0:00:18.4]} 65. Qxd6 {[%clk 0:00:13.6]}
65... b2 {[%clk 0:00:17.4]} 66. Qd8+ {[%clk 0:00:13]} 66... Kg7 {[%clk
0:00:16.2]} 67. Qd4+ {[%clk 0:00:12.3]} 67... Kh7 {[%clk 0:00:14.1]} 68. Qf6
{[%clk 0:00:10.9]} 68... Rb7 {[%clk 0:00:11]} 69. h5 {[%clk 0:00:08.7]} 69...
b1=Q {[%clk 0:00:08.7]} 70. hxg6+ {[%clk 0:00:08.6]} 70... fxg6 {[%clk
0:00:07.5]} 71. Qg7+ {[%clk 0:00:07.2]} 71... Kxg7 {[%clk 0:00:04.8]} 72. Kg4
{[%clk 0:00:06.8]} 72... Rb4+ {[%clk 0:00:03.5]} 73. Kf3 {[%clk 0:00:06.3]}
73... Qd3+ {[%clk 0:00:03]} 74. Kg2 {[%clk 0:00:05.6]} 74... Rb2+ {[%clk
0:00:02.7]} 75. Kg1 {[%clk 0:00:04.8]} 75... Qb1# {[%clk 0:00:02.6]} 0-1

[Event "Live Chess"]
[Site "Chess.com"]
[Date "2024.06.02"]
[Round "-"]
[White "Brooms1989"]
[Black "ProfPoisson"]
[Result "1-0"]
[WhiteElo "1168"]
[BlackElo "1321"]
[TimeControl "300"]
[EndTime "2:14:53 PDT"]
[Termination "Brooms1989 won by resignation"]

1. e4 {[%clk 0:04:57.6]} 1... e5 {[%clk 0:04:57.8]} 2. Nc3 {[%clk 0:04:56.3]}
2... Nf6 {[%clk 0:04:54.8]} 3. f4 {[%clk 0:04:54.5]} 3... d5 {[%clk 0:04:52.7]}
4. fxe5 {[%clk 0:04:52.9]} 4... Nxe4 {[%clk 0:04:49]} 5. Qf3 {[%clk 0:04:52.3]}
5... Nxc3 {[%clk 0:04:31.4]} 6. dxc3 {[%clk 0:04:51]} 6... c6 {[%clk 0:04:30]}
7. Bd3 {[%clk 0:04:45.5]} 7... Nd7 {[%clk 0:04:24]} 8. Bf4 {[%clk 0:04:39.1]}
8... Bc5 {[%clk 0:04:10.1]} 9. O-O-O {[%clk 0:04:33.7]} 9... Qa5 {[%clk
0:03:28.4]} 10. Kb1 {[%clk 0:04:25.3]} 10... Qb6 {[%clk 0:03:13.7]} 11. Ne2
{[%clk 0:04:18.7]} 11... Ba3 {[%clk 0:03:09.5]} 12. b3 {[%clk 0:04:14.9]} 12...
a5 {[%clk 0:03:05]} 13. Bc1 {[%clk 0:04:11.6]} 13... Bxc1 {[%clk 0:02:58.8]} 14.
Nxc1 {[%clk 0:04:08]} 14... a4 {[%clk 0:02:58.3]} 15. Rhf1 {[%clk 0:04:05.5]}
15... O-O {[%clk 0:02:53.9]} 16. Qh3 {[%clk 0:04:00.4]} 16... g6 {[%clk
0:02:45.1]} 17. Qh6 {[%clk 0:03:54]} 17... axb3 {[%clk 0:02:40.6]} 18. cxb3
{[%clk 0:03:50.8]} 18... Nxe5 {[%clk 0:02:32]} 19. Bc2 {[%clk 0:03:37.4]} 19...
Nc4 {[%clk 0:02:21]} 20. Rf3 {[%clk 0:03:22.8]} 20... Na3+ {[%clk 0:02:18.4]}
21. Kb2 {[%clk 0:03:20.7]} 21... Nxc2 {[%clk 0:02:09.7]} 22. Kxc2 {[%clk
0:03:18.8]} 22... Bf5+ {[%clk 0:01:55.7]} 23. Rxf5 {[%clk 0:03:13.7]} 23... gxf5
{[%clk 0:01:53.4]} 24. Rd3 {[%clk 0:03:12.5]} 24... Qf2+ {[%clk 0:01:43.9]} 25.
Kb1 {[%clk 0:03:04.9]} 25... Qxg2 {[%clk 0:01:21.1]} 26. Rg3+ {[%clk 0:02:59.7]}
26... Qxg3 {[%clk 0:01:10]} 27. hxg3 {[%clk 0:02:59.6]} 27... Rfe8 {[%clk
0:01:02.9]} 28. Qg5+ {[%clk 0:02:55.9]} 28... Kh8 {[%clk 0:01:00.6]} 29. Qxf5
{[%clk 0:02:54.3]} 29... Rg8 {[%clk 0:00:45.9]} 30. Qxf7 {[%clk 0:02:51]} 30...
Rxg3 {[%clk 0:00:42.2]} 31. Qxb7 {[%clk 0:02:47.1]} 31... Rag8 {[%clk
0:00:36.1]} 32. Qxc6 {[%clk 0:02:42.5]} 32... h5 {[%clk 0:00:34.7]} 33. Qxd5
{[%clk 0:02:39]} 33... h4 {[%clk 0:00:34.2]} 34. Qh5+ {[%clk 0:02:37.5]} 34...
Kg7 {[%clk 0:00:29.4]} 35. Qxh4 {[%clk 0:02:35.2]} 1-0

[Event "Live Chess"]
[Site "Chess.com"]
[Date "2024.06.02"]
[Round "-"]
[White "WorcesterYork"]
[Black "chessgoatpawel"]
[Result "1-0"]
[WhiteElo "2473"]
[BlackElo "2078"]
[TimeControl "300"]
[EndTime "2:14:54 PDT"]
[Termination "WorcesterYork won by resignation"]

1. d4 {[%clk 0:04:58.1]} 1... Nf6 {[%clk 0:04:58.8]} 2. Bg5 {[%clk 0:04:57.7]}
2... e6 {[%clk 0:04:56.8]} 3. Nd2 {[%clk 0:04:56]} 3... Be7 {[%clk 0:04:55.9]}
4. e4 {[%clk 0:04:54.9]} 4... O-O {[%clk 0:04:54.8]} 5. Bd3 {[%clk 0:04:53.2]}
5... d5 {[%clk 0:04:53.8]} 6. e5 {[%clk 0:04:52.2]} 6... Nfd7 {[%clk 0:04:52.9]}
7. h4 {[%clk 0:04:51.1]} 7... c5 {[%clk 0:04:50.8]} 8. c3 {[%clk 0:04:48]} 8...
Nc6 {[%clk 0:04:49.1]} 9. Qh5 {[%clk 0:04:44]} 9... g6 {[%clk 0:04:31.5]} 10.
Qg4 {[%clk 0:04:36.1]} 10... cxd4 {[%clk 0:04:28.5]} 11. cxd4 {[%clk 0:04:33.6]}
11... Qb6 {[%clk 0:04:15.9]} 12. Ngf3 {[%clk 0:04:32.3]} 12... Qxb2 {[%clk
0:03:57.8]} 13. Ke2 {[%clk 0:04:20.6]} 13... Qb6 {[%clk 0:03:44.5]} 14. h5
{[%clk 0:04:19.3]} 14... Bxg5 {[%clk 0:03:29.5]} 15. Qxg5 {[%clk 0:04:01]} 15...
Qd8 {[%clk 0:03:24.1]} 16. Qh6 {[%clk 0:03:59]} 16... Re8 {[%clk 0:02:56.7]} 17.
hxg6 {[%clk 0:03:57.7]} 17... Nf8 {[%clk 0:02:45.1]} 1-0